Cogmind - Beta 12 *** ADVENTURER MODE // 2024.01.29 @ 19:33:47 Player: Akire Result: Destroyed by 8R-AWN with 8R-AWN's Boregun Performance ------------- Evolutions (0) 0 Regions Visited (3) 600 Robots Destroyed (34) 170 Value Destroyed (554) 554 Prototype IDs (0) 0 Alien Tech Used (0) 0 Bonus (300) 300 TOTAL SCORE: 1624 Bonus ------- Aligned with FarCom 300 Cogmind --------- Core Integrity 0/250 Matter 45/300 Energy 54/125 System Corruption 1% Temperature Warm (105) Movement Core (800) Ox15 Location -10/Exiles Parts ------- > --- POWER (1) -------- Light Ion Engine > --- PROPULSION (2) --- (None) > --- UTILITY (2) ------ High-capacity Storage Unit > --- WEAPON (2) ------- Beam Cannon Assault Rifle > --- INVENTORY (20) --- Ion Engine Light Ion Engine Light Treads Structural Scanner ECM Suite Cloak of Protection Core Shielding Army-in-a-Box Light Assault Rifle Light Assault Rifle Peak State ------------ > --- POWER ------------ Ion Engine > --- PROPULSION ------- Light Treads Light Treads > --- UTILITY ---------- High-capacity Storage Unit Terrain Scanner > --- WEAPON ----------- Assault Cannon Grenade Launcher > --- INVENTORY -------- Ion Engine Light Ion Engine Light Ion Engine Light Treads Structural Scanner ECM Suite Cloak of Protection Core Shielding Light Armor Plating Army-in-a-Box Beam Cannon Assault Rifle Light Assault Rifle Light Assault Rifle [Rating: 16] Favorites ----------- Power Ion Engine Engine Ion Engine Propulsion Light Treads Treads Light Treads Utility Terrain Scanner Device Terrain Scanner Storage High-capacity Storage Unit Protection Light Armor Plating Weapon Grenade Launcher Energy Cannon Beam Cannon Ballistic Gun Light Assault Rifle Ballistic Cannon Assault Cannon Launcher Grenade Launcher Build | -11 -10 -10 -10 ------- Run | Jun Mat Min Exi Slots Evolved . | . . . . Power . | . . . . Propulsion . | . . . . Utility . | . . . . Weapon . | . . . . Parts Attached 25 | 6 14 1 4 Power 4 | 1 2 . 1 Engine 4 | 1 2 . 1 Core . | . . . . Reactor . | . . . . Propulsion 2 | 2 . . . Treads 2 | 2 . . . Leg . | . . . . Wheel . | . . . . Hover . | . . . . Flight . | . . . . Utility 6 | 1 4 . 1 Device 3 | . 3 . . Storage 2 | 1 1 . . Processor . | . . . . Hackware . | . . . . Protection 1 | . . . 1 Artifact . | . . . . Weapon 13 | 2 8 1 2 Energy Gun . | . . . . Energy Cannon 2 | . 1 . 1 Ballistic Gun 5 | 2 2 . 1 Ballistic Cannon 1 | . . 1 . Launcher 5 | . 5 . . Special Weapon . | . . . . Impact Weapon . | . . . . Slashing Weapon . | . . . . Piercing Weapon . | . . . . Special Melee Weapon . | . . . . Unidentified Prototypes . | . . . . Parts Lost 8 | . . 1 7 Power 1 | . . . 1 Propulsion 2 | . . . 2 Utility 2 | . . . 2 Weapon 3 | . . 1 2 Highest Loss Streak 7 | . . 1 7 To Critical Strikes 4 | . . . 4 Average Slot Usage (%) 98 | . 98 99 98 Engine 13 | . 13 14 13 Treads 27 | . 28 28 26 Device 13 | . 13 14 13 Storage 14 | . 14 14 14 Ballistic Gun 4 | . 9 . . Ballistic Cannon 5 | . . 3 13 Launcher 17 | . 17 24 13 Naked Turns . | . . . . Heaviest Build 54 | 10 52 54 54 Greatest Support 40 | 40 40 40 40 Greatest Overweight (x) 2 | . 1 1 2 Average Overweight (x) . | . . 1 1 Largest Inventory Capacity 20 | 8 20 20 20 Average Capacity 17 | 6 15 20 20 Most Carried 19 | 5 12 13 19 Average Carried 10 | 1 6 12 14 Final Capacity 20 | 8 20 20 20 Final Carried 15 | 1 12 12 15 Class Distribution -------------------- 100% | Mutant Dominant Class ---------------- Mutant | -10/Materials Mutant | -10/Mines Mutant | -10/Exiles Resources | -11 -10 -10 -10 ----------- Run | Jun Mat Min Exi Matter Collected 818 | 260 363 195 . Remotely . | . . . . Salvage Created 450 | . 298 125 27 Parts 48 | . 36 12 . Haulers Intercepted . | . . . . Recyclers Shooed . | . . . . Parts Field Recycled . | . . . . Retrieved Matter . | . . . . Parts Self-Destructed . | . . . . Prevented . | . . . . Kills | -11 -10 -10 -10 ------- Run | Jun Mat Min Exi Combat Hostiles Destroyed 33 | . 15 11 7 Guns 5 | . 3 . 2 Cannons 1 | . . . 1 AOE 27 | . 12 11 4 Classes Destroyed 7 | . 6 . 1 Worker 3 | . 3 . . Builder 1 | . 1 . . Mechanic 1 | . 1 . . Watcher 3 | . 3 . . Swarmer 18 | . 9 9 . Grunt 8 | . 6 2 . Assembled 7 | . . . 7 Best Kill Streak 6 | . 6 5 4 Combat Bots Only 5 | . 5 5 4 Max Kills in Single Turn 4 | . 4 3 2 Gunslinging . | . . . . Exploded 3 | . 3 3 2 Melee . | . . . . Uniques/NPCs Destroyed . | . . . . Combat | -11 -10 -10 -10 -------- Run | Jun Mat Min Exi Damage Taken 1108 | . 146 248 714 Core 253 | . 28 53 172 Absorbed by Shields . | . . . . Regen/Repaired (Parts) 311 | . 311 . . Core Remaining (%) 100 | 100 . . . Volleys Fired 71 | . 37 10 24 Largest 2 | . 2 2 2 Hottest 80 | . 60 60 80 Shots Fired 110 | . 47 19 44 Gun 41 | . 29 . 12 Cannon 20 | . . . 20 Launcher 49 | . 18 19 12 Special . | . . . . Kinetic 49 | . 29 . 20 Thermal 12 | . . . 12 Explosive 49 | . 18 19 12 Electromagnetic . | . . . . Robot Hit Streak 16 | . 11 16 13 Robot Miss Streak 2 | . 2 1 2 Penetration Max . | . . . . Secondary Targets 1 | . 1 . . Max Gunslinging Chain 1 | . 1 . . Shots Hit Robots 65 | . 25 7 33 Core Hits 65 | . 34 11 20 Critical Kills . | . . . . Critical Parts Destroyed . | . . . . Critical Strikes . | . . . . Melee Attacks . | . . . . Impact . | . . . . Slashing . | . . . . Piercing . | . . . . Sneak Attacks . | . . . . Combat Hostiles . | . . . . Follow-up Attacks . | . . . . Damage Inflicted 2576 | . 1242 763 571 Guns 299 | . 176 . 123 Cannons 226 | . . . 226 Explosions 2051 | . 1066 763 222 Melee . | . . . . Ramming . | . . . . Kinetic 420 | . 176 . 244 Thermal 105 | . . . 105 Explosive 2051 | . 1066 763 222 Electromagnetic . | . . . . Impact . | . . . . Slashing . | . . . . Piercing . | . . . . Highest Corruption 1 | . 1 1 1 Average Corruption 1 | . 1 1 1 Corruption Purged . | . . . . Corruption Blocked . | . . . . Effects 22 | . 8 6 8 Message Errors 4 | . 2 1 1 Matter Fused 8 | . 2 3 3 Heat Flow Errors 5 | . 1 1 3 Energy Discharges 2 | . 1 1 . Data Loss (minor) 2 | . 2 . . Misfires 1 | . . . 1 Overload Shots . | . . . . Overflow Damage 42 | . 8 22 12 Projectiles . | . . . . Explosions 42 | . 8 22 12 Melee . | . . . . Knockbacks 4 | . . . 4 Impact . | . . . . Kinetic 4 | . . . 4 Secondary . | . . . . Self-Inflicted Damage 90 | . . 90 . Shots 7 | . . 7 . Rammed . | . . . . Targets Rammed . | . . . . Kicked . | . . . . Crushed . | . . . . Highest Temperature 269 | . 269 238 258 Average Temperature 67 | . 63 73 67 Received Heat Transfer 225 | . 36 69 120 Siege Activations . | . . . . Robots Corrupted . | . . . . Combat Hostiles . | . . . . Parts Fried . | . . . . Impact Corruptions . | . . . . Robots Melted . | . . . . Combat Hostiles . | . . . . Parts Melted . | . . . . Heat Transferred 240 | . . . 240 Parts Sabotaged . | . . . . Parts Stolen . | . . . . Parts Stripped . | . . . . Power Chain Reactions . | . . . . Missiles Intercepted . | . . . . Alert | -11 -10 -10 -10 ------- Run | Jun Mat Min Exi Peak Influence 222 | . 196 222 . Initial 47 | . . 47 . Average 94 | . 73 150 . Maximum Alert Level 1 | . . 1 . Low Security (%) 90 | 100 100 67 . Level 1 9 | . . 32 . Level 2 . | . . . . Level 3 . | . . . . Level 4 . | . . . . Level 5 . | . . . . High Security . | . . . . Max Security . | . . . . Squads Dispatched 4 | . 3 1 . Investigation 4 | . 3 1 . Extermination . | . . . . Reinforcement . | . . . . Assault . | . . . . Garrison . | . . . . Intercept . | . . . . Searches Triggered . | . . . . Construction Impeded . | . . . . Haulers Reinforced . | . . . . Active Scanning Responses . | . . . . Cargo Convoy Interrupts . | . . . . Stealth | -11 -10 -10 -10 --------- Run | Jun Mat Min Exi Distress Signals 2 | . 2 . . Communications Jammed . | . . . . Distress Signals . | . . . . Times Spotted 42 | . 23 11 8 Peak Tracking Total 9 | . 4 3 9 Tactical Retreats . | . . . . Traps | -11 -10 -10 -10 ------- Run | Jun Mat Min Exi Traps Triggered 2 | . 2 . . Indirectly . | . . . . Trap Hack Attempts . | . . . . Triggered . | . . . . Disarmed . | . . . . Reprogrammed . | . . . . Reused . | . . . . Traps Extracted . | . . . . Installed . | . . . . Triggered . | . . . . Machines | -11 -10 -10 -10 ---------- Run | Jun Mat Min Exi Machines Disabled 7 | . 1 3 3 Max in Single Turn 2 | . 1 2 1 Machines Repaired . | . . . . Machines Sabotaged . | . . . . Overloaded Fab Kills . | . . . . Hacking | -11 -10 -10 -10 --------- Run | Jun Mat Min Exi Machines Accessed 13 | . 9 . 4 Terminals 6 | . 6 . . Fabricators . | . . . . Repair Stations 1 | . 1 . . Recycling Units 2 | . 2 . . Scanalyzers . | . . . . Garrison Access . | . . . . Total Hacks 76 | . 27 . 49 Successful 70 | . 21 . 49 Failed 6 | . 6 . . Catastrophic . | . . . . Database Lockouts . | . . . . Manual 1 | . . . 1 Terminals 16 | . 16 . . Fabricators . | . . . . Repair Stations 6 | . 6 . . Recycling Units 5 | . 5 . . Scanalyzers . | . . . . Garrison Access . | . . . . Terminal Hacks 60 | . 11 . 49 Record 56 | . 7 . 49 Locate Traps 1 | . 1 . . Maintenance Status 1 | . 1 . . Zone Layout 2 | . 2 . . Fabricator Hacks . | . . . . Repair Station Hacks 6 | . 6 . . Scan Component 3 | . 3 . . Repair 3 | . 3 . . Recycling Unit Hacks 4 | . 4 . . Report Inventory 2 | . 2 . . Retrieve Components 2 | . 2 . . Scanalyzer . | . . . . Garrison Access Hacks . | . . . . Unauthorized Hacks . | . . . . Terminals . | . . . . Fabricators . | . . . . Repair Stations . | . . . . Recycling Units . | . . . . Scanalyzers . | . . . . Garrison Access . | . . . . Data Cores Recovered . | . . . . Used . | . . . . Hacking Detections 6 | . 6 . . Full Trace Events 4 | . 4 . . Feedback Events 1 | . 1 . . Corruption 1 | . 1 . . Feedback Blocked . | . . . . Robot Schematics Acquired . | . . . . Robots Built . | . . . . Authchips . | . . . . Time . | . . . . Total Robot Build Rating . | . . . . Part Schematics Acquired . | . . . . Parts Built . | . . . . Authchips . | . . . . Time . | . . . . Total Part Build Rating . | . . . . Parts Repaired 3 | . 3 . . Time 78 | . 78 . . Parts Recycled . | . . . . Recycled Matter . | . . . . Retrieved Matter . | . . . . Retrieved Components 9 | . 9 . . Parts Scanalyzed . | . . . . Part Schematics Acquired . | . . . . Parts Damaged . | . . . . Bothacking | -11 -10 -10 -10 ------------ Run | Jun Mat Min Exi Used RIF Installer . | . . . . Robots Hacked . | . . . . Non-combat . | . . . . Combat . | . . . . Robot Hacks Applied . | . . . . Relay Couplers Released . | . . . . Fabnet Peak Effective % . | . . . . Robots Rewired . | . . . . Allies Hacked . | . . . . Hacks Repelled . | . . . . Allies | -11 -10 -10 -10 -------- Run | Jun Mat Min Exi Total Allies . | . . . . Largest Group . | . . . . Highest-Rated Group . | . . . . Highest-Rated Ally . | . . . . Total Orders . | . . . . Ally Attacks . | . . . . Total Damage . | . . . . Kills . | . . . . Allies Corrupted . | . . . . Allies Melted . | . . . . Intel | -11 -10 -10 -10 ------- Run | Jun Mat Min Exi Robot Analysis Total . | . . . . Derelict Logs Recovered 1 | . . 1 . Drone Launches . | . . . . Drone Recoveries . | . . . . Exploration | -11 -10 -10 -10 ------------- Run | Jun Mat Min Exi Turns Passed 4464 | 44 1955 811 1654 Spaces Moved 1833 | 30 841 303 659 Core 16 | 16 . . . Treads 1817 | 14 841 303 659 Legs . | . . . . Wheels . | . . . . Hover . | . . . . Flight . | . . . . Fastest Speed 50 | 50 160 240 240 Average Speed 222 | 101 207 240 240 Slowest Speed 320 | 160 240 240 320 Overloaded Moves . | . . . . Propulsion Burnouts . | . . . . Robots Hopped . | . . . . Cave-ins Triggered . | . . . . Exploration Rate (%) 69 | 3 97 86 93 Regions Visited 3 Branch Regions 2 Pre-discovered Areas 1 | . . . 1 Known Exits Taken . | . . . . Unknown Exits Taken 3 | 1 1 1 . Scrap Searched 3 | . . 3 . Spaces Dug . | . . . . Terrain Destroyed 249 | . 97 114 38 Melee . | . . . . Projectile 2 | . . . 2 AOE 247 | . 97 114 36 Terrain Rammed . | . . . . Walls Destroyed . | . . . . Machines Disabled . | . . . . Actions | -11 -10 -10 -10 --------- Run | Jun Mat Min Exi Total 2109 | 43 1008 369 689 Wait 158 | 3 100 55 . Move 1830 | 29 840 302 659 Hop . | . . . . Pick Up 24 | 5 16 1 2 Fast Attach 2 | 2 . . . Attach 12 | 4 3 1 4 Detach . | . . . . Swap 11 | . 11 . . Drop 1 | . 1 . . Fire 71 | . 37 10 24 Melee . | . . . . Ram . | . . . . Kick . | . . . . Crush . | . . . . Escape Stasis . | . . . . Rewire . | . . . . Trap . | . . . . Miscellaneous . | . . . . Route ------- -11/Junkyard -10/Materials (discovered 5 exits: [*Mat x3] / [*Min x2]) -10/Mines (discovered 3 exits: [*Mat x2] / *Exi) -10/Exiles (discovered 2 exits: [*Min x2]) History --------- Turn | Location | Event 10 | -11/Junkyard | Discovered new exit (range 16) 45 | -11/Junkyard | Entered Materials 128 | -10/Materials | Discovered new exit (range 8) 294 | -10/Materials | Discovered new exit (range 16) 303 | -10/Materials | Build established: Mutant 473 | -10/Materials | Discovered new exit (range 16) 709 | -10/Materials | Repaired Grenade Launcher 736 | -10/Materials | Repaired Hcp. Storage Unit 763 | -10/Materials | Repaired Lgt. Ion Engine 940 | -10/Materials | Discovered new exit (range 15) 995 | -10/Materials | Discovered new exit (range 12) 2000 | -10/Materials | Entered Mines 2129 | -10/Mines | Met a Derelict shopkeep closing up shop 2188 | -10/Mines | Learned Materials emergency access door positions 2354 | -10/Mines | Discovered new exit (range 12) 2652 | -10/Mines | Discovered new exit (range 9) 2802 | -10/Mines | Deemed a non-threat by the Exiles lab entrance 2802 | -10/Mines | Discovered new exit (range 5) 2811 | -10/Mines | Entered Exiles 2850 | -10/Exiles | Discovered new exit (range 15) 2915 | -10/Exiles | Met 8R-AWN 2967 | -10/Exiles | Met EX-HEX 3078 | -10/Exiles | Met EX-DEC 3191 | -10/Exiles | Learned location of Zion (-7) 3294 | -10/Exiles | Discovered new exit (range 14) 3577 | -10/Exiles | Met EX-BIN 3661 | -10/Exiles | Aligned with FarCom system 3663 | -10/Exiles | Given EX-Vault access code 3781 | -10/Exiles | Opened EX-Vault 3795 | -10/Exiles | Found Prototype Device 3811 | -10/Exiles | Found Prototype Device 3865 | -10/Exiles | Warned to stay clear of 0b10 Research branches 4000 | -10/Exiles | Visited The Gauntlet 4386 | -10/Exiles | Attacked by the Exiles 4419 | -10/Exiles | Core integrity fell below 50% 4436 | -10/Exiles | Core integrity fell below 20% 4465 | -10/Exiles | Destroyed by 8R-AWN with 8R-AWN's Boregun Last Messages --------------- 04443_ Critical hit (Destroy). 04443_ HV Slug penetrates Earth. 04444_ Earth collapses. 04446_ The unstable cave ceiling collapses. 04446_ as-42402 destroyed. 04448_ The unstable cave ceiling collapses. 04448_ HV Slug penetrates Earth. 04448_ HV Slug penetrates Wall. 04448_ Penetrated by HV Slug. 04448_ Lgt. Armor Plating destroyed. 04452_ as-36057 destroyed. 04452_ HV Slug penetrates Wall. 04454_ The unstable cave ceiling collapses. 04456_ Penetrated by HV Slug. 04458_ as-80453 destroyed. 04460_ Penetrated by HV Slug. 04460_ HV Slug penetrates Wall. 04460_ HV Slug penetrates Earth. 04462_ The unstable cave ceiling collapses. 04465_ Penetrated by HV Slug. Map ----- +----------------------------------------------------+ | ?????????????????????????????????????????????????? | | ?????????????????????????????????????????????????? | | ?????????????????????????????????????????????????? | | ?????????????????????????????????????????????????? | | ?????????????????????????????????????????????????? | | ???????????????????????????????????#?????#???????? | | ?#???????????????????????????????????????????????? | | ?????????????????????????????????????????????????? | | ?????????????????????????????????????????###?????? | | ???????????#??????????????#????????????## #?????? | | ??????????????????????????????????????## #?????? | | ??????????????????????????????????????# < #?????? | | ??????????#??????????????#????#???????# #?????? | | ""##???????????#??????????#???????????# #?????? | | """##?#?????????#?#????????????#?#???## #?#????? | | " #??????????####?????????????????## ##?????? | | """#??????????## #####????#???????# #?????? | | " "##?#???????## # #??##???#????# #?#???? | | " "###???????## #????#???#?## #?????? | | ""###????#?# # ??????#??## # #????#? | | """##????## g # ??#??????# ###?????? | | "##?#?## ??#????### ##???????? | | ##???# ######### #????????? | | ##?## ## ##????????? | | ### % % * ##????????? | | # @ * #?#?#????# | | ## ##???????? | | ""###"""" ##;; ###?????? | | #"""########;#?##;;# * ###?#?? | | ######??#???#???#? ;##;# ##??? | | ##????#??????#??????# ?### #??# | | ##??##?????????#????#? # ??### #??? | | ""###???#????#??????????### ???### #??? | | "##??????????????#????#????# #?##" ##?? | | """"""##???????????#???????????????##??#### ### | | #######??#???#????????????????#???????????# # | | ????#?????????#?????????#?????????????????## | | ??##????????????????#???#??????????????????### | | ?????????????#????????????????#??????????????# | | ?????????????????????????????????????????????## | | ????????????????????????????????????#?????????#### | | ?????????????????????????????????????????????????? | | ?????????????????????????????????????????????????? | | ?????????????????????????????????????????????????? | | ??????????????????????????????????????????#??????? | | ?????????????????????????????????????????????????? | | ?????????????????????????????????????????????????? | | ?????????????????????????????????????????????????? | | ?????????????????????????????????????????????????? | | ?????????????????????????????????????????????????? | +----------------------------------------------------+ Best States ------------- Heat Dissipation 25 Energy Generation 10 Energy Capacity 250 Matter Stores 300 Matter Capacity 300 Sight Range 16 Terrain Scan Range 14 Terrain Scan Density 10 Armor Coverage 150 Resistance: KI 20 Resistance: TH 20 Resistance: EX 20 Resistance: EM 20 Resistance: I 20 Resistance: S 20 Resistance: P 20 Evasion (%) 50 Recoil Reduction 2 Offensive Hacking 10 Item Schematics ----------------- None Robot Schematics ------------------ None Fabricated ------------ Nothing Alien Tech Used ----------------- None Achievements -------------- None Challenges ------------ None Game ------ Seed LongswordColdAmplifier Manual? 0 Play Time 00:48:30 Cumulative 10.9 hours Start 2024.01.29 @ 17:08:05 End 2024.01.29 @ 19:33:47 Sessions 1 Manual Loads 0 Difficulty Adventurer Special Mode None Game No. 19 Rogue 3 Adventurer 16 Explorer 0 Win Type - Total 0 Types 0/0/0/0/0/0/0/0/0 Lore% 14 Gallery% 13 Achievement% 13 Wizard Run 0 Options --------- ASCII 0 Keyboard 0 Movement Mouse Keybinds 0 Fullscreen 1 Font 18/X11Bold Map View 76x50 Tactical HUD 1 Map Filters NONE Filters NONE Steam 1 RUN: 5c36e3ee-4254-48f1-9267-7011d3801a3b